[Event "7th Sharjah Masters 2024"]
[Site "Sharjah"]
[Date "2024.05.19"]
[Round "6.28"]
[White "Kuybokarov, Temur"]
[Black "Krzyzanowski, Marcin"]
[Result "1-0"]
[ECO "A20"]
[WhiteElo "2602"]
[BlackElo "2526"]
[Annotator "TA"]
[PlyCount "75"]
[EventDate "2024.05.13"]
[EventType "swiss"]
[EventCountry "UAE"]
[SourceTitle "playchess.com"]
[Source "ChessBase"]
[SourceQuality "1"]
[TimeControl "5400+30"]

{[%evp 11,75,8,4,1,15,10,52,74,62,28,36,33,93,83,92,76,108,114,106,117,119,93,179,178,186,192,264,259,269,267,255,214,308,295,358,368,534,510,495,270,288,287,287,288,291,298,368,345,513,493,545,512,739,719,1724,1656,1899,1252,1913,1837,1891,1772,29965,29963,4931,1264]} 1. c4 {[%emt 0:00:05]} e5 {[%emt 0:00:07]} 2. g3 {[%emt 0:00:09]} Nf6 {[%emt 0:00:13]} 3. Bg2 {[%emt 0:00:10]} d5 {[%emt 0:00:28]} 4. cxd5 {[%emt 0:00:15]} Nxd5 {[%emt 0:00:06]} 5. Nf3 {[%emt 0:00:11]} Nc6 {[%emt 0:00:06]} 6. O-O {[%emt 0:00:28]} Nb6 {[%emt 0:00:37]} 7. b3 {[%emt 0:00:27]} Be7 {[%emt 0:01:51]} 8. Bb2 {[%emt 0:00:10]} Bf6 {[%emt 0:01:12] ...e4 would now be deadly.} 9. Nc3 {[%emt 0:01:29][%cal Bb1c3,Bc3e4,Be4f6][%mdl 32] White is slightly better.} Bf5 {[%emt 0:03:15] Repels Ne4} 10. d3 {[%emt 0:05:51]} O-O {[%emt 0:10:00]} 11. Ne4 {[%emt 0:10:08]} Re8 {[%emt 0:09:59] [#]} ({Black should try} 11... Bxe4 $1 $14 12. dxe4 a5) 12. Nxf6+ $1 $16 {[%emt 0:06:15] White leaves nothing to chance now.} Qxf6 {[%emt 0:00:06] [#]} 13. b4 $1 {[%emt 0:07:17][%cal Bb3b4,Bb4b5][%mdl 32]} Bg4 {[%emt 0:11:08]} (13... a6 14. a4) 14. b5 {[%emt 0:09:28]} Nd4 {[%emt 0:17:45]} 15. Nxd4 {[%emt 0:00:21]} exd4 {[%emt 0:00:04]} 16. Re1 {[%emt 0:00:58][%cal Od1c2]} (16. Bxb7 $6 Bxe2 17. Qb3 Rab8 $11) 16... Rad8 {[%emt 0:00:45]} (16... a6 $16 {was necessary.}) 17. Bxb7 $18 {[%emt 0:02:09]} Qe5 {[%emt 0:01:10]} 18. Qc2 {[%emt 0:06:59]} Qh5 {[%emt 0:07:15]} (18... Nd5 $142 19. Qc4 Nb6) 19. Be4 {[%emt 0:06:28]} (19. Qxc7 Rd7 20. Qc6 Re6 $11) 19... f5 {[%emt 0:05:38]} 20. Bc6 {[%emt 0:00:35] This pair of bishops is nice.} Re6 {[%emt 0:09:37]} 21. Qc5 {[%emt 0:03:19]} Red6 {[%emt 0:03:15]} (21... f4 $142 22. Bxd4 Nd5) 22. f3 {[%emt 0:08:24]} Bh3 {[%emt 0:01:36]} 23. a4 {[%emt 0:01:12][%cal Ba2a4,Ba4a5][%mdl 32]} Kh8 {[%emt 0:04:12]} (23... Qf7 $142 24. Bc1 (24. a5 Nd7 $18) 24... h6) 24. a5 {[%emt 0:02:20]} Nd7 {[%emt 0:01:30]} 25. Bxd7 {[%emt 0:04:17]} (25. Qxa7 $142 Ne5 26. Qxc7 Nxc6 27. Ba3 (27. bxc6 Qe8 $18)) 25... R6xd7 {[%emt 0:00:03]} 26. Ra4 {[%emt 0:00:34][%cal Ra4d4,Ba1a4,Ba4c4,Bc4c7,Bc7g7,Bg7f7][%mdl 32]} (26. Qxa7 $6 f4 $18) 26... Qe8 {[%emt 0:01:11]} 27. Bc1 {[%emt 0:04:13] Repels Qe3+} (27. Rxd4 $2 Qe3+ 28. Kh1 Qf2 $19 (28... Rxd4 29. Bxd4 Qxd4 30. Qxd4 $15)) (27. Bxd4 Rxd4 28. Rxd4 Qe3+ 29. Kh1 Qxd4 (29... Rxd4 30. Qf8#) 30. Qxd4 Rxd4 $15) (27. Qxa7 Qe3+ 28. Kh1 Qf2 29. Rg1 Qxe2 30. Qb7 Rd5 (30... Qxb2 $2 31. g4 $19) (30... Qxb2 $2 31. b6 $19)) 27... Rd5 {[%emt 0:01:41]} 28. Qxa7 {[%emt 0:00:32]} (28. Qxc7 Rxb5 29. a6 (29. Qxa7 Rb1 $17) 29... Rb1 $16) 28... h6 {[%emt 0:08:04]} 29. Rc4 {[%emt 0:02:39]} (29. Qxc7 Rc8 $11) 29... Re5 {[%emt 0:00:28]} (29... Ra8 {might work better.} 30. Qxc7 Qxb5 31. Bxh6 Rd7 (31... gxh6 $2 32. Rc6 $18)) 30. Kf2 {[%emt 0:01:03]} (30. Rxc7 {gets mated.} Rxe2 31. Re7 Rxe1+ 32. Kf2 Rxe7 33. g4 Rxa7 34. gxf5 Rc7 (34... Qxb5 {leads to mate.} 35. Kg3 Qxf5 36. Bf4 Rxa5 37. Bd2 Qg6+ 38. Bg5 Rxg5+ 39. Kf2 Qe8 40. f4 Qe3#) (34... Rxa5 35. Bf4 Ra2+ 36. Kg3 Qh5 37. Bd2 Rxd2 38. f6 Rg2+ 39. Kf4 Qf5#) 35. Bf4 Rc2+ (35... Rc3 36. Kg3 Rxd3 37. Kh4 Rxf3 38. Bd2 Qe4+ 39. Bf4 Rxf4+ 40. Kxh3 Qf3#) 36. Kg3 Qh5 (36... Bxf5 37. Bd2 Rxd2 38. Kf4 Qe3+ 39. Kxf5 Qxf3+ 40. Kg6 Rg2#) (36... Bxf5 {is a self mate.} 37. Bd2 Rxd2 38. Kf4 Qe3+ 39. Kxf5 Qxf3+ 40. Kg6 Rg2#)) 30... Qxb5 {[%emt 0:01:24]} 31. Rxc7 {[%emt 0:00:55]} f4 {[%emt 0:00:40]} 32. Bxf4 {[%emt 0:00:33]} Re6 {[%emt 0:00:17]} 33. Rxg7 {[%emt 0:00:30]} Bf5 {[%emt 0:00:02] Inhibits Rh7+.} 34. g4 {[%emt 0:01:47]} Bg6 {[%emt 0:00:14]} 35. Qc7 {[%emt 0:02:56]} Rde8 {[%emt 0:00:12]} 36. Bxh6 {[%emt 0:00:50][%cal Og7h7] Rh7+! would kill now.} Bf7 {[%emt 0:00:48]} 37. Rxf7 {[%emt 0:00:51]} Rxh6 {[%emt 0:00:16]} 38. Qf4 {[%emt 0:00:13][%csl LRd4,LRh6] Weighted Error Value: White=0.17 (very precise) /Black=0.56.  Mistake:       	White=1     	Black=6      Inaccurate:     	White=1     	Black=4      OK:         	White=16    	Black=8      Best:        	White=2     	---        Strong:       	White=1     	---} 1-0

[Event "7th Sharjah Masters 2024"]
[Site "Sharjah"]
[Date "2024.05.19"]
[Round "6.29"]
[White "Assaubayeva, Bibisara"]
[Black "Safarli, Eltaj"]
[Result "1/2-1/2"]
[ECO "A09"]
[WhiteElo "2481"]
[BlackElo "2597"]
[Annotator "TA"]
[PlyCount "99"]
[EventDate "2024.05.13"]
[EventType "swiss"]
[EventCountry "UAE"]
[SourceTitle "playchess.com"]
[Source "ChessBase"]
[SourceQuality "1"]
[TimeControl "5400+30"]

{[%evp 9,99,0,0,0,0,0,-7,-27,-37,-44,-39,-88,-56,-100,-99,-92,-53,-77,-46,-93,-48,-50,-58,-99,-25,-55,0,0,107,47,34,46,46,38,47,-23,63,49,56,27,33,23,18,15,27,5,69,51,112,116,165,176,138,164,443,16,20,19,8,0,0,0,0,0,0,0,0,0,0,0,0,0,0,0,0,0,0,0,0,0,0,0,0,0,0,0,0,0,0,0,0,0]} 1. Nf3 {[%emt 0:00:06]} d5 {[%emt 0:01:02][%cal Bd7d5,Bd5d4][%mdl 32]} 2. e3 {[%emt 0:00:41]} c5 {[%emt 0:00:38]} 3. c4 {[%emt 0:05:30]} d4 {[%emt 0:04:33]} 4. g3 {[%emt 0:00:43]} g6 {[%emt 0:02:28]} 5. Bg2 {[%emt 0:00:17]} Bg7 {[%emt 0:00:12]} 6. O-O {[%emt 0:00:10]} Nc6 {[%emt 0:00:16]} 7. d3 {[%emt 0:01:16]} dxe3 {[%emt 0:02:04]} 8. fxe3 {[%emt 0:03:03]} (8. Bxe3 $5 Bxb2 9. Nbd2 $11) 8... Nf6 {[%emt 0:01:34]} 9. Nc3 {[%emt 0:05:29]} O-O {[%emt 0:00:08]} 10. h3 {[%emt 0:08:01]} (10. d4 $15 {deserves consideration.}) 10... Qd6 {[%emt 0:06:12]} 11. Ne2 {[%emt 0:03:31]} Rd8 {[%emt 0:09:08]} 12. d4 {[%emt 0:06:58]} Ne4 {[%emt 0:02:42]} 13. Kh2 {[%emt 0:04:48]} f5 {[%emt 0:01:55]} (13... cxd4 14. exd4 Bf5 15. Qe1 $11) 14. a3 {[%emt 0:08:30]} (14. b3 $15 {should be considered.}) 14... b6 {[%emt 0:05:56]} 15. Qc2 {[%emt 0:03:42]} Ba6 {[%emt 0:04:07]} 16. b4 {[%emt 0:08:57]} Bb7 {[%emt 0:13:46]} (16... cxd4 17. exd4 Nxd4 18. Nfxd4 $16) (16... cxb4 $17 {[%cal Ob4b3] White must now prevent ...b3!} 17. axb4 Nxb4) 17. Bb2 {[%emt 0:01:26]} e5 {[%emt 0:08:25]} (17... cxb4 $15 18. Nf4 e6) 18. d5 $11 {[%emt 0:01:55]} Nb8 {[%emt 0:04:37] [#]} (18... Ne7 $11 {keeps the balance.}) 19. Nd2 {[%emt 0:05:05]} (19. Nh4 $1 $16 {[%cal Rh4f5]}) 19... Nxd2 $14 {[%emt 0:01:28]} 20. Qxd2 {[%emt 0:00:31]} Nd7 {[%emt 0:00:25][%cal Ob6b5]} 21. e4 {[%emt 0:01:09]} Rf8 {[%emt 0:02:32]} 22. Kh1 {[%emt 0:06:09]} (22. b5 $14) 22... a5 {[%emt 0:03:28]} (22... cxb4 $11 23. axb4 fxe4) 23. b5 $1 {[%emt 0:05:44]} Rae8 {[%emt 0:03:35]} 24. Rf2 {[%emt 0:01:02]} Bc8 $1 {[%emt 0:00:48]} 25. Raf1 {[%emt 0:01:19][%cal Re4f5]} Nf6 {[%emt 0:00:32]} 26. exf5 {[%emt 0:03:25]} gxf5 {[%emt 0:01:53]} 27. Qg5 {[%emt 0:00:44]} Kh8 {[%emt 0:00:46]} (27... h6 $11 28. Qh4 Qe7) 28. g4 {[%emt 0:02:16] White is more active.} fxg4 {[%emt 0:01:55] [#]} ({Black should play} 28... Qe7 $14 29. gxf5 Ne4 30. Qxe7 Nxf2+ 31. Rxf2 Rxe7) 29. h4 $1 $16 {[%emt 0:02:48]} Ng8 {[%emt 0:03:19]} ({Wrong is} 29... h6 $2 30. Qg6 Qe7 31. Ng3 $18) (29... g3 $16 {is a better defense.} 30. Nxg3 Bd7) 30. Ng3 $18 {[%emt 0:03:18] And now Nh5 would win.} Rxf2 {[%emt 0:02:33]} 31. Rxf2 {[%emt 0:00:01]} Qg6 $2 {[%emt 0:01:23]} (31... h6 32. Qh5 Rf8) 32. Ne4 $2 {[%emt 0:01:29]} ({White must play} 32. Be4 $18 Qxg5 33. hxg5) 32... Nh6 $11 {[%emt 0:00:27] The position is equal.} 33. Qxg6 {[%emt 0:02:39]} hxg6 {[%emt 0:00:03]} 34. Nd6 {[%emt 0:00:05]} Rd8 {[%emt 0:00:19]} 35. Nxc8 {[%emt 0:00:02]} Rxc8 {[%emt 0:00:04]} 36. Be4 {[%emt 0:00:07][%cal Oh1g2] Inhibits Nf5.} Nf5 $1 {[%emt 0:01:22]} 37. Bxf5 {[%emt 0:02:10]} Rf8 {[%emt 0:00:07]} 38. Re2 $1 {[%emt 0:00:02]} gxf5 {[%emt 0:00:29]} 39. Bxe5 {[%emt 0:00:14][%mdl 4096] Endgame. KRB-KRB} f4 {[%emt 0:00:40]} 40. Kg1 {[%emt 0:03:24] Threatens to win with Bd6.} g3 {[%emt 0:00:39]} 41. Re4 {[%emt 0:00:49]} Bxe5 {[%emt 0:01:19]} 42. Rxe5 {[%emt 0:00:01] KR-KR} Kg7 {[%emt 0:00:21]} 43. Rg5+ {[%emt 0:00:01]} Kh6 {[%emt 0:04:06]} 44. d6 {[%emt 0:00:00]} (44. Kg2 $5) 44... Rf7 {[%emt 0:00:52]} 45. Kf1 {[%emt 0:00:44]} Rd7 {[%emt 0:01:30]} 46. Rd5 {[%emt 0:00:09] aiming for Kg2.} f3 {[%emt 0:00:12]} 47. Rd3 {[%emt 0:01:10]} Kh5 {[%emt 0:01:05] Strongly threatening ...Kg4.} 48. Rxf3 {[%emt 0:00:02]} Rxd6 {[%emt 0:00:08] ...Kg4 is the strong threat.} 49. Rxg3 {[%emt 0:00:02]} Rd4 {[%emt 0:03:08]} 50. Rg5+ {[%emt 0:00:05] Weighted Error Value: White=0.24 (precise) /Black=0.26 (precise) .  Missed win:     	White=1     	---        Mistake:       	White=4     	Black=8      Inaccurate:     	White=4     	Black=4      OK:         	White=10    	Black=18     Best:        	White=3     	Black=5      Strong:       	White=3     	Black=2} 1/2-1/2

[Event "7th Sharjah Masters 2024"]
[Site "Sharjah"]
[Date "2024.05.19"]
[Round "6.30"]
[White "Gholami Orimi, Mahdi"]
[Black "Idani, Pouya"]
[Result "1/2-1/2"]
[ECO "A21"]
[WhiteElo "2470"]
[BlackElo "2605"]
[Annotator "TA"]
[PlyCount "66"]
[EventDate "2024.05.13"]
[EventType "swiss"]
[EventCountry "UAE"]
[SourceTitle "playchess.com"]
[Source "ChessBase"]
[SourceQuality "1"]
[TimeControl "5400+30"]

{[%evp 12,66,31,3,14,6,24,12,23,25,28,54,43,0,39,0,0,0,0,0,34,6,3,4,5,17,4,6,20,10,8,7,14,8,8,16,14,0,0,0,0,0,0,0,0,0,0,0,0,0,-6,0,0,0,0,-1,0]} 1. d4 {[%emt 0:00:05]} d6 {[%emt 0:00:06]} 2. c4 {[%emt 0:01:01]} e5 {[%emt 0:00:09]} 3. Nf3 {[%emt 0:03:46]} e4 {[%emt 0:00:36]} 4. Ng5 {[%emt 0:05:40][%cal Bf3g5,Bg5h3,Bh3f4][%mdl 32]} f5 {[%emt 0:00:34]} 5. Nc3 {[%emt 0:00:25]} Be7 {[%emt 0:01:41]} 6. Nh3 {[%emt 0:03:55]} Nf6 {[%emt 0:00:35]} 7. Bg5 {[%emt 0:00:46]} Be6 {[%emt 0:03:08]} 8. Nf4 {[%emt 0:06:10]} Bf7 {[%emt 0:00:06]} 9. e3 {[%emt 0:06:39]} O-O {[%emt 0:00:59]} 10. Be2 {[%emt 0:04:31]} c5 {[%emt 0:00:40]} 11. dxc5 {[%emt 0:09:43]} dxc5 {[%emt 0:00:34]} 12. Qxd8 {[%emt 0:01:19]} Bxd8 {[%emt 0:03:42]} 13. Bxf6 {[%emt 0:04:16]} Bxf6 {[%emt 0:01:40]} 14. Nfd5 {[%emt 0:00:03]} Bxc3+ {[%emt 0:16:30]} 15. Nxc3 {[%emt 0:00:16]} Rd8 {[%emt 0:00:30]} 16. f3 {[%emt 0:06:47]} exf3 {[%emt 0:11:58] The position is equal.} 17. Bxf3 {[%emt 0:06:55]} Nc6 $1 {[%emt 0:00:05]} 18. Bxc6 {[%emt 0:00:24]} bxc6 {[%emt 0:00:06]} 19. O-O {[%emt 0:00:23]} g6 {[%emt 0:03:58]} 20. b3 {[%emt 0:02:46]} Rd3 $1 {[%emt 0:00:06][%csl LRc3,LRe3]} 21. Na4 {[%emt 0:00:07]} Rxe3 {[%emt 0:00:05]} 22. Rfe1 {[%emt 0:02:49]} Rae8 {[%emt 0:05:05]} 23. Rxe3 {[%emt 0:01:14]} Rxe3 $11 {[%emt 0:00:05][%mdl 4096] Endgame. KRB-KRN} 24. Kf2 {[%emt 0:00:06]} Re5 {[%emt 0:06:25]} 25. Rd1 {[%emt 0:00:16]} g5 {[%emt 0:00:41]} 26. Rd7 {[%emt 0:01:03]} Bh5 {[%emt 0:00:09]} 27. Rxa7 {[%emt 0:00:19]} Re2+ {[%emt 0:02:27]} 28. Kf1 {[%emt 0:00:12]} Rxa2 {[%emt 0:00:41] Strongly threatening ...Bd1.} 29. Re7 {[%emt 0:01:23]} f4 {[%emt 0:03:26]} 30. Re5 {[%emt 0:08:41]} h6 {[%emt 0:00:55]} 31. h4 {[%emt 0:02:38]} Ra1+ {[%emt 0:10:01]} 32. Re1 {[%emt 0:04:07]} Rxe1+ {[%emt 0:00:16]} 33. Kxe1 {[%emt 0:00:02]} Kf7 {[%emt 0:01:17] Weighted Error Value: White=0.07 (flawless) /Black=0.03 (flawless) .  Inaccurate:     	White=3     	Black=2      OK:         	White=13    	Black=13     Strong:       	---       	Black=2} 1/2-1/2

[Event "7th Sharjah Masters 2024"]
[Site "Sharjah"]
[Date "2024.05.19"]
[Round "6.31"]
[White "Erdogmus, Yagiz Kaan"]
[Black "Banusz, Tamas"]
[Result "1/2-1/2"]
[ECO "E38"]
[WhiteElo "2554"]
[BlackElo "2623"]
[Annotator "TA"]
[PlyCount "65"]
[EventDate "2024.05.13"]
[EventType "swiss"]
[EventCountry "UAE"]
[SourceTitle "playchess.com"]
[Source "ChessBase"]
[SourceQuality "1"]
[TimeControl "5400+30"]

{[%evp 12,65,33,40,36,47,36,45,36,22,23,0,0,0,0,0,0,0,3,0,11,5,6,7,4,2,6,8,8,11,18,31,18,14,19,25,24,24,19,20,38,38,38,38,38,38,39,38,38,30,32,3,6,7,30,0]} 1. d4 {[%emt 1:31:00]} Nf6 {[%emt 1:31:00]} 2. c4 {[%emt 0:00:30]} e6 {[%emt 0:00:30]} 3. Nc3 {[%emt 0:00:30]} Bb4 {[%emt 0:00:30]} 4. Qc2 {[%emt 0:00:30]} c5 {[%emt 0:00:30]} 5. dxc5 {[%emt 0:00:30]} Qa5 {[%emt 0:00:30]} 6. Bd2 {[%emt 0:00:30][%cal Bc1d2,Bd2c3,Bc3b4][%mdl 32]} Qxc5 {[%emt 0:00:30]} 7. e3 {[%emt 0:00:30]} d5 {[%emt 0:00:30]} 8. a3 {[%emt 0:00:30]} Bxc3 {[%emt 0:00:30]} 9. Bxc3 {[%emt 0:00:30]} dxc4 {[%emt 0:00:30] White is slightly better.} 10. Bb4 {[%emt 0:00:30]} Qc6 {[%emt 0:00:30]} 11. Qxc4 {[%emt 0:00:30]} (11. Nf3 {feels hotter.} a5 12. Nd4 Qd7 13. Bc3) 11... Qxc4 {[%emt 0:00:30]} 12. Bxc4 {[%emt 0:00:30]} Nc6 {[%emt 0:00:30]} 13. Bc3 {[%emt 0:00:30]} Ne4 {[%emt 0:00:30]} 14. Rc1 {[%emt 0:00:30]} Nxc3 {[%emt 0:00:30]} 15. Rxc3 {[%emt 0:00:30]} Ke7 {[%emt 0:00:30]} 16. Nf3 {[%emt 0:00:30]} Bd7 {[%emt 0:00:30]} 17. Ke2 {[%emt 0:00:30]} Rac8 {[%emt 0:00:30]} 18. Rhc1 {[%emt 0:00:30]} Na5 {[%emt 0:00:30] [#] Threatens to win with ...Rxc4.} 19. Bd3 {[%emt 0:00:30]} Rxc3 {[%emt 0:00:30]} 20. Rxc3 {[%emt 0:00:30]} Rc8 {[%emt 0:00:30]} 21. Rxc8 {[%emt 0:00:30]} (21. Bxh7 $2 {is the wrong capture.} Rxc3 22. bxc3 g6 $19) 21... Bxc8 $11 {[%emt 0:00:30][%mdl 4096] Endgame. KBN-KBN} 22. Ne5 {[%emt 0:00:30]} (22. Bxh7 g6 (22... Nc4 23. Bc2 $11) 23. Kd3 Kf6 $19) 22... f6 {[%emt 0:00:30]} 23. b4 {[%emt 0:00:30]} fxe5 {[%emt 0:00:30]} 24. bxa5 {[%emt 0:00:30] KB-KB} h6 {[%emt 0:00:30]} 25. Be4 {[%emt 0:00:30]} b6 {[%emt 0:00:30]} 26. axb6 {[%emt 0:00:30]} axb6 {[%emt 0:00:30]} 27. Kd3 {[%emt 0:00:30]} Kd6 {[%emt 0:00:30]} 28. Kc4 {[%emt 0:00:30]} Bd7 {[%emt 0:00:30]} 29. Kb4 {[%emt 0:00:30]} Be8 {[%emt 0:00:30]} 30. f3 {[%emt 0:00:30]} Bd7 {[%emt 0:00:30]} 31. a4 {[%emt 0:00:30]} Be8 {[%emt 0:00:30]} 32. Bd3 {[%emt 0:00:30]} g5 {[%emt 0:00:30]} 33. g4 {[%emt 0:00:30] Weighted Error Value: White=0.04 (flawless) /Black=0.03 (flawless) .  Inaccurate:     	White=2     	---        OK:         	White=11    	Black=10     Best:        	White=1     	Black=1} 1/2-1/2

[Event "7th Sharjah Masters 2024"]
[Site "Sharjah"]
[Date "2024.05.19"]
[Round "6.32"]
[White "Gavrilescu, David"]
[Black "Vakhidov, Jakhongir"]
[Result "1-0"]
[ECO "B27"]
[WhiteElo "2540"]
[BlackElo "2599"]
[Annotator "RC"]
[PlyCount "87"]
[EventDate "2024.05.13"]
[EventType "swiss"]
[EventCountry "UAE"]
[SourceTitle "playchess.com"]
[Source "ChessBase"]
[SourceQuality "1"]
[TimeControl "5400+30"]

1. e4 {[%emt 0:00:18]} c5 {[%emt 0:00:42]} 2. Nf3 {[%emt 0:00:21]} g6 {[%emt 0:00:12]} 3. c3 {[%emt 0:00:26]} d5 {[%emt 0:00:06]} 4. e5 {[%emt 0:00:31]} Bg4 {[%emt 0:00:55]} 5. Bb5+ {[%emt 0:01:09]} Nc6 {[%emt 0:00:09]} 6. Bxc6+ {[%emt 0:00:44]} bxc6 {[%emt 0:00:08]} 7. O-O {[%emt 0:01:47]} c4 {[%emt 0:02:51]} 8. Re1 {[%emt 0:02:55]} Bg7 {[%emt 0:04:47]} 9. b3 {[%emt 0:07:45]} cxb3 {[%emt 0:09:36]} 10. axb3 {[%emt 0:01:22]} Nh6 {[%emt 0:14:25]} 11. d4 {[%emt 0:04:21]} O-O {[%emt 0:00:09]} 12. Nbd2 {[%emt 0:03:34]} f6 {[%emt 0:05:41]} 13. h3 {[%emt 0:04:42]} Bxf3 {[%emt 0:02:36]} 14. Nxf3 {[%emt 0:00:08]} Nf7 {[%emt 0:00:05]} 15. exf6 {[%emt 0:09:07]} exf6 {[%emt 0:02:36]} 16. Ba3 {[%emt 0:03:05]} Re8 {[%emt 0:00:57]} 17. Bc5 {[%emt 0:02:15]} Rxe1+ {[%emt 0:11:37]} 18. Qxe1 {[%emt 0:02:47]} Qd7 {[%emt 0:00:03]} 19. Ra6 {[%emt 0:05:07]} Qb7 {[%emt 0:06:29]} 20. Qa1 {[%emt 0:03:27]} Qxb3 {[%emt 0:02:46]} 21. Rxa7 {[%emt 0:01:33]} Rxa7 {[%emt 0:15:48]} 22. Qxa7 {[%emt 0:00:44]} h5 {[%emt 0:01:01]} 23. Qa8+ {[%emt 0:04:45]} Kh7 {[%emt 0:03:03]} 24. Qxc6 {[%emt 0:00:09]} Qb1+ {[%emt 0:00:14]} 25. Kh2 {[%emt 0:00:06]} Qf5 {[%emt 0:00:05]} 26. Qc7 {[%emt 0:02:59]} Kg8 {[%emt 0:00:07]} 27. Ba3 {[%emt 0:09:30]} g5 {[%emt 0:03:18]} 28. Qe7 {[%emt 0:03:38]} Qc8 {[%emt 0:02:38]} 29. Qe2 {[%emt 0:03:23]} Nh6 {[%emt 0:03:43]} 30. Qd3 {[%emt 0:01:25]} Nf5 {[%emt 0:02:27]} 31. g3 {[%emt 0:04:00]} Qe6 {[%emt 0:01:01]} 32. Nd2 {[%emt 0:02:05]} g4 {[%emt 0:02:30]} 33. hxg4 {[%emt 0:01:29]} hxg4 {[%emt 0:00:02]} 34. c4 {[%emt 0:00:15]} Bh6 {[%emt 0:03:51]} 35. cxd5 {[%emt 0:01:44]} Qxd5 {[%emt 0:00:02]} 36. Ne4 {[%emt 0:00:12]} Kg7 {[%emt 0:00:26]} 37. Bc5 {[%emt 0:00:54]} Kf7 {[%emt 0:01:20]} 38. Nc3 {[%emt 0:03:21]} Qe6 {[%emt 0:00:01]} 39. d5 {[%emt 0:01:24]} Qe5 {[%emt 0:00:01]} 40. Qc4 {[%emt 0:00:11]} Nh4 {[%emt 0:01:30]} 41. d6+ {[%emt 0:00:45]} Kg7 {[%emt 0:00:29]} 42. Qxg4+ {[%emt 0:00:08]} Bg5 {[%emt 0:00:03]} 43. Ne4 {[%emt 0:00:12]} Ng6 {[%emt 0:00:54]} 44. Nxg5 {[%emt 0:11:47]} 1-0

[Event "7th Sharjah Masters 2024"]
[Site "Sharjah"]
[Date "2024.05.19"]
[Round "6.33"]
[White "Jumabayev, Rinat"]
[Black "Erdos, Viktor"]
[Result "1/2-1/2"]
[ECO "E40"]
[WhiteElo "2597"]
[BlackElo "2546"]
[Annotator "TA"]
[PlyCount "29"]
[EventDate "2024.05.13"]
[EventType "swiss"]
[EventCountry "UAE"]
[SourceTitle "playchess.com"]
[Source "ChessBase"]
[SourceQuality "1"]
[TimeControl "5400+30"]

{[%evp 10,29,11,4,28,29,29,15,25,11,10,8,10,-2,4,-34,0,0,0,-67,-23,-59]} 1. c4 {[%emt 0:00:01]} e6 {[%emt 0:09:51]} 2. Nc3 {[%emt 0:04:20]} d5 {[%emt 0:01:08]} 3. d4 {[%emt 0:00:07]} Bb4 {[%emt 0:00:44]} 4. a3 {[%emt 0:00:12][%cal Ba2a3,Ba3a4,Ba4a5][%mdl 32]} Bxc3+ {[%emt 0:00:13]} 5. bxc3 {[%emt 0:00:01]} Nf6 {[%emt 0:00:25]} 6. e3 {[%emt 0:00:46]} c6 {[%emt 0:06:08][%cal Bc7c6,Bc6c5][%mdl 32]} 7. a4 {[%emt 0:05:59]} O-O {[%emt 0:00:19]} 8. Nf3 {[%emt 0:00:33]} b6 {[%emt 0:00:27] The position is equal.} 9. a5 {[%emt 0:02:35]} Ba6 {[%emt 0:05:25]} 10. Nd2 {[%emt 0:03:25]} Qc8 {[%emt 0:08:21]} 11. Qb3 {[%emt 0:18:48]} c5 {[%emt 0:22:34]} 12. Be2 {[%emt 0:04:38]} Nc6 {[%emt 0:12:00]} 13. axb6 {[%emt 0:11:30]} axb6 {[%emt 0:00:04]} 14. Ba3 {[%emt 0:10:01]} ({White should play} 14. Qxb6 $11 cxd4 15. exd4) 14... Qc7 {[%emt 0:04:28]} 15. Qd1 {[%emt 0:17:30] Weighted Error Value: White=0.19 (very precise) /Black=0.15 (very precise) .  Mistake:       	White=1     	---        Inaccurate:     	White=2     	Black=2      OK:         	White=3     	Black=3} 1/2-1/2